Workbook

Sheet Comparador
H5: ESTUDIO ECOLOGIA : CICLO DE VIDA DE LA PLANTA DE CONCRETO : LCA:
H6: PARTE n°5 : LCA PARCIAL DE LA EMISION Y HUELLA CO2.
H7: 5.4. AMASADO + TRANSPORTE : comparación entre dos tipos de plantas.
H8: EQUIPO FRANCES SA DE CV, Colima, 15 de Abril 2022.
F10: VOLUMEN M3 : | H10: ESCOGER TIPO DE PLANTA "A" de referencia : | J10: ESCOGER TIPO DE PLANTA "B" para comparar :
H11: SISTEMA DE AMASADO Y TRANSPORTE | J11: SISTEMA DE AMASADO Y TRANSPORTE
F12: 100000 | H12: Mezclador Twin-shaft LIEBHERR con revolvedora normal chasis diesel | J12: Revolvedora normal sobre chasis diesel
H13: ENERGIA AMASADO : | J13: ENERGIA AMASADO :
H14: Electricidad CFE | J14: Revolvedora chasis gas | L14: Chasis diesel
H15: ENERGIA CARGA+PARADAS : | J15: ENERGIA CARGA+PARADAS :
H16: Electricidad CFE | J16: Revolvedora chasis gas | L16: Chasis diesel
H17: ENERGIA TRANSPORTE ACTIVO : | J17: ENERGIA TRANSPORTE ACTIVO :
H18: Gas chasis | J18: Revolvedora chasis gas | L18: Chasis diesel
H21: PLANTA ESCOGIDA | J21: PLANTA ESCOGIDA | L21: DIFERENCIA
H22: DE REFERENCIA "A" | J22: PARA COMPARAR "B" | L22: "B" - "A"
H23: FASE 1 : AMASADO : | J23: FASE 1 : AMASADO :
G24: Huella cemento : | H24: 18700400 | J24: 21770000 | L24: =+J24-H24 -> 3069600 | M24: =+L24/H24 -> 0.1641462215
G25: CO2 directo durante amasado : | H25: 0 | J25: 30800 | L25: =+J25-H25 -> 30800 | M25: =+L25/H25 -> 
G26: Huella electricidad : | H26: 24600 | J26: 0 | L26: -24600 | M26: =+IFERROR(L26/H26," ") -> -1
G27: Total AMASADO : | H27: =+SUM(H24:H26) -> 18725000 | J27: =+SUM(J24:J26) -> 21800800 | L27: 3075800 | M27: 0.1642616822
H28: FASE 2 : TRANSPORTE | J28: FASE 2 : TRANSPORTE
G29: CO2 carga+paradas : | H29: 66000 | J29: 66000 | L29: =+J29-H29 -> 0 | M29: =+L29/H29 -> 0
G30: CO2 transporte activo : | H30: 330000 | J30: 330000 | L30: 0 | M30: 0
G31: Total TRANSPORTE : | H31: =+H30+H29 -> 396000 | J31: =+J29+J30 -> 396000 | L31: 0 | M31: 0
G33: TOTAL AMASADO+TRANSPORTE : | H33: =+H31+H27 -> 19121000 | J33: =+J31+J27 -> 22196800 | L33: =+J33-H33 -> 3075800 | M33: =+L33/H33 -> 0.1608597877
G36: Cemento : | H36: =+H24 -> 18700400 | I36: Cemento : | J36: =+J24 -> 21770000 | K36: Cemento : | L36: =+L24 -> 3069600
G37: Amasado; CO2 directo | H37: =+H25 -> 0 | I37: Amasado; CO2 directo | J37: =+J25 -> 30800 | K37: Amasado; CO2 directo | L37: =+L25 -> 30800
G38: Amasado; electricidad | H38: =+H26 -> 24600 | I38: Amasado; electricidad | J38: =+J26 -> 0 | K38: Amasado; electricidad | L38: =+L26 -> -24600
G39: Transporte paradas | H39: =+H29 -> 66000 | I39: Transporte paradas | J39: =+J29 -> 66000 | K39: Transporte paradas | L39: =+L29 -> 0
G40: Transporte activo | H40: =+H30 -> 330000 | I40: Transporte activo | J40: =+J30 -> 330000 | K40: Transporte activo | L40: =+L30 -> 0
H51: LISTAS DE CRITERIOS : A ESCONDER
H53: SISTEMA AMASADO : | J53: Revolvedora normal sobre chasis diesel
H54: Revolvedora normal | J54: Revolvedora normal sobre chasis gas
H55: Revolvedora eléctrica Hydrid | J55: Revolvedora sobre eléctrico chasis eléctrico
H56: Revolvedora eléctrica Plug-in | J56: Revolvedora eléctrica Hybrid sobre chasis diesel
H57: Revolvedora Tilt | J57: Revolvedora eléctrica Plug-in sobre chasis diesel
H58: Revolvedora eléctrica | J58: Revolvedora eléctrica Hybrid sobre chasis gas
H59: Mezclador Twin-shaft Otros | J59: Revolvedora eléctrica Plug-in sobre chasis gas
H60: Mezclador Twin-shaft LIEBHERR | J60: Revolvedora eléctrica Hybrid sobre chasis eléctrico
H61: Mezclador Ring-pan LIEBHERR | J61: Revolvedora eléctrica Plug-in sobre chasis eléctrico
J62: Revolvedora Tilt con revolvedora normal chasis diesel
H63: ENERGIA AMASADO : | J63: Revolvedora Tilt con revolvedora eléctrica Plug-in sobre chasis gas
H64: Diesel chasis | J64: Revolvedora Tilt con revolvedora eléctrica Hybrid sobre chasis eléctrico
H65: Gas chasis | J65: Mezclador Twin-shaft Otros con revolvedora normal chasis diesel
H66: Electricidad chasis eléctrico | J66: Mezclador Twin-shaft Otros con revolvedora eléctrica Plug-in sobre chasis gas
H67: Electricidad chasis diesel | J67: Mezclador Twin-shaft Otros con revolvedora eléctrica Hybrid sobre chasis eléctrico
H68: Electricidad CFE | J68: Mezclador Twin-shaft LIEBHERR con revolvedora normal chasis diesel
H69: Electricad chasis gas | J69: Mezclador Twin-shaft LIEBHERR con revolvedora eléctrica Plug-in sobre chasis gas
J70: Mezclador Twin-shaft LIEBHERR con revolvedora eléctrica Hybrid sobre chasis eléctrico
H71: ENERGIA CARGA+PARADAS : | J71: Mezclador Ring-pan LIEBHERR con revolvedora normal chasis diesel
H72: Diesel chasis | J72: Mezclador Ring-pan LIEBHERR con revolvedora eléctrica Plug-in sobre chasis gas
H73: Gas chasis | J73: Mezclador Ring-pan LIEBHERR con revolvedora eléctrica Hybrid sobre chasis eléctrico
H74: Electricidad chasis eléctrico
H75: Electricidad chasis diesel
H76: Electricidad CFE
H77: Electricidad chasis gas
H79: ENERGIA TRANSPORTE ACTIVO :
H80: Diesel chasis
H81: Gas chasis
H82: Electricidad chasis eléctrico
H83: Electricidad CFE
J88: Electricidad CFE

Sheet Total (hidden)
D2: ESTUDIO ECOLOGIA : CICLO DE VIDA DE LA PLANTA DE CONCRETO.
D3: 5. AMASADO MAS TRANSPORTE.
D4: 5.2. HUELLA CO2 AMASADO MAS TRANSPORTE :
D5: Solo el mezclado central tiene impacto significativo para bajar la huella CO2 y el chasis eléctrica es de evitar.
D6: Creado Colima, EQUIPO FRANCES SA DE CV, Abr. 9 2022. Actualizado Abr. 17 2022.
D7: Parámetros fijos : un solo concreto con 350 kg cemento/m3 (30 MPa), duración mezclado.
D8: Volumen : | E8: =Comparador!$F$12 -> 100000
D9: SISTEMA AMASADO | E9: ENERGIA | F9: ENERGIA | G9: ENERGIA | H9: AMASADO | K9: TRANSPORTE | M9: AMASADO | P9: TRANSPORTE | R9: FACTOR | S9: % FACTOR | T9: % MEJORA VS | U9: Ejemplo m3 | V9: Diferencia con
E10: UTILIZADA | F10: UTILIZADA | G10: UTILIZADA | H10: CEMENTO | I10: EMISION | J10: HUELLA | K10: PARADAS | L10: ACTIVO | M10: CEMENTO | N10: EMISION | O10: HUELLA | P10: PARADAS | Q10: ACTIVO | R10: AMASADO+ | S10: TRANSPORTE | T10: REVOLVEDORA | U10: concreto = | V10: Revolvedora
E11: AMASADO | F11: TRANSPORTE PARADA | G11: TRANSPORTE ACTIVO | H11: kg CO2/m3 | I11: DIRECTA | J11: ELECTRICAD | K11: kg CO2/m3 | L11: kg CO2/m3 | M11: kg CO2/m3 | N11: DIRECTA | O11: ELECTRICAD | P11: kg CO2/m3 | Q11: kg CO2/m3 | R11: TRANSPORTE | S11: VS TOTAL | T11: +CHASIS DIESEL | U11: 10000 | V11: +Chasis diesel
C12: Revolvedora normal sobre chasis diesel | D12: Revolvedora normal | E12: Diesel chasis | F12: =+E12 -> Diesel chasis | G12: =+E12 -> Diesel chasis | H12: ='Cemento+Energia'!H14 -> 217.7 | I12: ='Cemento+Energia'!I14 -> 0.308 | J12: 0 | K12: =Transporte!J15 -> 0.66 | L12: =Transporte!H15 -> 3.3 | M12: =+H12*$E$8 -> 21770000 | N12: =+I12*$E$8 -> 30800 | O12: 0 | P12: 66000 | Q12: 330000 | R12: =+SUM(H12:L12) -> 221.968 | S12: =+L12/R12 -> 0.01486700786 | T12: =+(R12-$R$12)/$R$12 -> 0 | U12: =+R12*$U$11 -> 2219680 | V12: =+U12-U12 -> 0
C13: Revolvedora normal sobre chasis gas | D13: Revolvedora normal | E13: Gas chasis | F13: Gas chasis | G13: =+E13 -> Gas chasis | H13: ='Cemento+Energia'!H15 -> 217.7 | I13: ='Cemento+Energia'!I15 -> 0.2464 | J13: 0 | K13: =Transporte!J16 -> 0.528 | L13: =Transporte!H16 -> 2.64 | M13: =+H13*$E$8 -> 21770000 | N13: 24640 | O13: 0 | P13: 52800 | Q13: 264000 | R13: =+SUM(H13:L13) -> 221.1144 | S13: =+L13/R13 -> 0.0119395209 | T13: =+(R13-$R$12)/$R$12 -> -0.003845599366 | U13: =+R13*$U$11 -> 2211144 | V13: =+U13-$U$12 -> -8536
C14: Revolvedora sobre eléctrico chasis eléctrico | D14: Revolvedora normal | E14: Electricidad chasis eléctrico | F14: Electricidad chasis eléctrico | G14: =+E14 -> Electricidad chasis eléctrico | H14: ='Cemento+Energia'!H16 -> 217.7 | I14: 0 | J14: ='Energia '!$I$14 -> 0.504 | K14: =Transporte!$K$17 -> 2.701 | L14: =Transporte!$I$17 -> 12.967 | M14: 21770000 | N14: 0 | O14: 50400 | P14: 270100 | Q14: 1296700 | R14: 233.872 | S14: 0.05544485873 | T14: =+(R14-$R$12)/$R$12 -> 0.05362935198 | U14: 2338720 | V14: =+U14-$U$12 -> 119040
C15: Revolvedora eléctrica Hybrid sobre chasis diesel | D15: Revolvedora eléctrica Hybrid | E15: Electricidad chasis diesel | F15: Electricidad chasis diesel | G15: Diesel chasis | H15: ='Cemento+Energia'!H17 -> 217.7 | I15: ='Cemento+Energia'!I17 -> 0.308 | J15: 0 | K15: =Transporte!$J$18 -> 0.66 | L15: =Transporte!$J$18 -> 0.66 | M15: 21770000 | N15: 30800 | O15: 0 | P15: 66000 | Q15: 66000 | R15: 219.328 | S15: 0.003009191713 | T15: -0.01189360629 | U15: 2193280 | V15: -26400
C16: Revolvedora eléctrica Plug-in sobre chasis diesel | D16: Revolvedora eléctrica Plug-in | E16: Electricidad CFE | F16: Electricidad CFE | G16: Diesel chasis | H16: ='Cemento+Energia'!H18 -> 217.7 | I16: 0 | J16: ='Energia '!$I$16 -> 0.202 | K16: =Transporte!$K$19 -> 0.432 | L16: =Transporte!$H$19 -> 3.3 | M16: 21770000 | N16: 0 | O16: 20200 | P16: 43200 | Q16: 330000 | R16: 221.634 | S16: 0.01488941227 | T16: -0.001504721401 | U16: 2216340 | V16: -3340
C17: Revolvedora eléctrica Hybrid sobre chasis gas | D17: Revolvedora eléctrica Hydrid | E17: Electricidad chasis gas | F17: Electricidad chasis gas | G17: Gas chasis | H17: ='Cemento+Energia'!H19 -> 217.7 | I17: ='Cemento+Energia'!I19 -> 0.2464 | J17: 0 | K17: =Transporte!$J$20 -> 0.528 | L17: =Transporte!$H$20 -> 2.64 | M17: 21770000 | N17: 24640 | O17: 0 | P17: 52800 | Q17: 264000 | R17: 221.1144 | S17: 0.0119395209 | T17: -0.003845599366 | U17: 2211144 | V17: -8536
C18: Revolvedora eléctrica Plug-in sobre chasis gas | D18: Revolvedora eléctrica Plug-in | E18: Electricidad CFE | F18: Electricidad CFE | G18: Gas chasis | H18: ='Cemento+Energia'!H20 -> 217.7 | I18: 0 | J18: ='Energia '!I18 -> 0.202 | K18: =Transporte!$K$21 -> 0.432 | L18: =Transporte!$H$21 -> 2.64 | M18: 21770000 | N18: 0 | O18: 20200 | P18: 43200 | Q18: 264000 | R18: 220.974 | S18: 0.0119471069 | T18: -0.004478122973 | U18: 2209740 | V18: -9940
C19: Revolvedora eléctrica Hybrid sobre chasis eléctrico | D19: Revolvedora eléctrica Hybrid | E19: Electricidad chasis eléctrico | F19: Electricidad chasis eléctrico | G19: Electricidad CFE | H19: ='Cemento+Energia'!H21 -> 217.7 | I19: 0 | J19: ='Energia '!I19 -> 0.504 | K19: =Transporte!$K$22 -> 2.701 | L19: =Transporte!$I$22 -> 12.967 | M19: 21770000 | N19: 0 | O19: 50400 | P19: 270100 | Q19: 1296700 | R19: 233.872 | S19: 0.05544485873 | T19: 0.05362935198 | U19: 2338720 | V19: 119040
C20: Revolvedora eléctrica Plug-in sobre chasis eléctrico | D20: Revolvedora eléctrica Plug-in | E20: Electricidad CFE | F20: Electricidad CFE | G20: =+E20 -> Electricidad CFE | H20: ='Cemento+Energia'!H22 -> 217.7 | I20: 0 | J20: ='Energia '!I20 -> 0.202 | K20: =Transporte!$K$23 -> 0.432 | L20: =Transporte!$I$23 -> 12.967 | M20: 21770000 | N20: 0 | O20: 20200 | P20: 43200 | Q20: 1296700 | R20: 231.301 | S20: 0.05606114976 | T20: 0.04204660131 | U20: 2313010 | V20: 93330
C21: Revolvedora Tilt con revolvedora normal chasis diesel | D21: Revolvedora Tilt | E21: =+E12 -> Diesel chasis | F21: =+F12 -> Diesel chasis | G21: =+G12 -> Diesel chasis | H21: ='Cemento+Energia'!H23 -> 213.346 | I21: 0 | J21: ='Energia '!$I$21 -> 0.686 | K21: =Transporte!$J$15 -> 0.66 | L21: =+L12 -> 3.3 | M21: 21334600 | N21: 0 | O21: 68600 | P21: 66000 | Q21: 330000 | R21: 217.992 | S21: =+L21/R21 -> 0.01513817021 | T21: -0.01791249189 | U21: 2179920 | V21: -39760
C22: Revolvedora Tilt con revolvedora eléctrica Plug-in sobre chasis gas | D22: Revolvedora Tilt | E22: Electricidad CFE | F22: =+F18 -> Electricidad CFE | G22: =+G18 -> Gas chasis | H22: ='Cemento+Energia'!H23 -> 213.346 | I22: 0 | J22: ='Energia '!$I$21 -> 0.686 | K22: =Transporte!$K$21 -> 0.432 | L22: =Transporte!$H$21 -> 2.64 | M22: 21334600 | N22: 0 | O22: 68600 | P22: 43200 | Q22: 264000 | R22: 217.104 | S22: 0.01216007075 | T22: -0.02191306855 | U22: 2171040 | V22: -48640
C23: Revolvedora Tilt con revolvedora eléctrica Hybrid sobre chasis eléctrico | D23: Revolvedora Tilt | E23: Electricidad CFE | F23: =+F19 -> Electricidad chasis eléctrico | G23: =+G19 -> Electricidad CFE | H23: ='Cemento+Energia'!H23 -> 213.346 | I23: 0 | J23: ='Energia '!$I$21 -> 0.686 | K23: =Transporte!$K$22 -> 2.701 | L23: =Transporte!$I$22 -> 12.967 | M23: 21334600 | N23: 0 | O23: 68600 | P23: 270100 | Q23: 1296700 | R23: 229.7 | S23: 0.05645189377 | T23: 0.03483384992 | U23: 2297000 | V23: 77320
C24: Mezclador Twin-shaft Otros con revolvedora normal chasis diesel | D24: Mezclador Twin-shaft Otros | E24: =+E12 -> Diesel chasis | F24: =+F12 -> Diesel chasis | G24: =+G12 -> Diesel chasis | H24: ='Cemento+Energia'!H24 -> 187.004 | I24: 0 | J24: ='[1]Energia '!$I$22 -> 0.259 | K24: =+K21 -> 0.66 | L24: =+L21 -> 3.3 | M24: 18700400 | N24: 0 | O24: 25900 | P24: 66000 | Q24: 330000 | R24: 191.223 | S24: 0.01725733829 | T24: -0.1385109565 | U24: 1912230 | V24: -307450
C25: Mezclador Twin-shaft Otros con revolvedora eléctrica Plug-in sobre chasis gas | D25: Mezclador Twin-shaft Otros | E25: Electricidad CFE | F25: =+F18 -> Electricidad CFE | G25: =+G18 -> Gas chasis | H25: ='Cemento+Energia'!H24 -> 187.004 | I25: 0 | J25: ='[1]Energia '!$I$22 -> 0.259 | K25: =+K22 -> 0.432 | L25: 2.64 | M25: 18700400 | N25: 0 | O25: 25900 | P25: 43200 | Q25: 264000 | R25: 190.335 | S25: 0.01387028135 | T25: -0.1425115332 | U25: 1903350 | V25: -316330
C26: Mezclador Twin-shaft Otros con revolvedora eléctrica Hybrid sobre chasis eléctrico | D26: Mezclador Twin-shaft Otros | E26: Electricidad CFE | F26: =+F19 -> Electricidad chasis eléctrico | G26: =+G19 -> Electricidad CFE | H26: ='Cemento+Energia'!H24 -> 187.004 | I26: 0 | J26: ='[1]Energia '!$I$22 -> 0.259 | K26: =+K23 -> 2.701 | L26: 12.967 | M26: 18700400 | N26: 0 | O26: 25900 | P26: 270100 | Q26: 1296700 | R26: 202.931 | S26: 0.06389856651 | T26: -0.08576461472 | U26: 2029310 | V26: -190370
C27: Mezclador Twin-shaft LIEBHERR con revolvedora normal chasis diesel | D27: Mezclador Twin-shaft LIEBHERR | E27: =+E12 -> Diesel chasis | F27: =+F12 -> Diesel chasis | G27: =+G12 -> Diesel chasis | H27: ='Cemento+Energia'!H25 -> 187.004 | I27: 0 | J27: ='[1]Energia '!$I$23 -> 0.246 | K27: =+K21 -> 0.66 | L27: =+L21 -> 3.3 | M27: 18700400 | N27: 0 | O27: 24600 | P27: 66000 | Q27: 330000 | R27: 191.21 | S27: 0.01725851158 | T27: -0.1385695235 | U27: 1912100 | V27: -307580
C28: Mezclador Twin-shaft LIEBHERR con revolvedora eléctrica Plug-in sobre chasis gas | D28: Mezclador Twin-shaft LIEBHERR | E28: Electricidad CFE | F28: =+F18 -> Electricidad CFE | G28: =+G18 -> Gas chasis | H28: ='Cemento+Energia'!H25 -> 187.004 | I28: 0 | J28: ='[1]Energia '!$I$23 -> 0.246 | K28: =+K22 -> 0.432 | L28: 2.64 | M28: 18700400 | N28: =+I28*$E$8 -> 0 | O28: =+J28*$E$8 -> 24600 | P28: =+K28*$E$8 -> 43200 | Q28: =+L28*$E$8 -> 264000 | R28: 190.322 | S28: 0.01387122876 | T28: -0.1425701002 | U28: 1903220 | V28: -316460
C29: Mezclador Twin-shaft LIEBHERR con revolvedora eléctrica Hybrid sobre chasis eléctrico | D29: Mezclador Twin-shaft LIEBHERR | E29: Electricidad CFE | F29: =+F19 -> Electricidad chasis eléctrico | G29: =+G19 -> Electricidad CFE | H29: ='Cemento+Energia'!H25 -> 187.004 | I29: 0 | J29: ='[1]Energia '!$I$23 -> 0.246 | K29: =+K23 -> 2.701 | L29: 12.967 | M29: 18700400 | N29: 0 | O29: 24600 | P29: 270100 | Q29: 1296700 | R29: 202.918 | S29: 0.06390266019 | T29: -0.08582318172 | U29: 2029180 | V29: -190500
C30: Mezclador Ring-pan LIEBHERR con revolvedora normal chasis diesel | D30: Mezclador Ring-pan LIEBHERR | E30: =+E12 -> Diesel chasis | F30: =+F12 -> Diesel chasis | G30: =+G12 -> Diesel chasis | H30: ='Cemento+Energia'!H26 -> 177.654 | I30: 0 | J30: ='[1]Energia '!$I$24 -> 0.344 | K30: =+K21 -> 0.66 | L30: =+L21 -> 3.3 | M30: 17765400 | N30: 0 | O30: 34400 | P30: 66000 | Q30: 330000 | R30: 181.958 | S30: 0.01813605337 | T30: -0.1802512074 | U30: 1819580 | V30: -400100
C31: Mezclador Ring-pan LIEBHERR con revolvedora eléctrica Plug-in sobre chasis gas | D31: Mezclador Ring-pan LIEBHERR | E31: Electricidad CFE | F31: =+F18 -> Electricidad CFE | G31: =+G18 -> Gas chasis | H31: ='Cemento+Energia'!H26 -> 177.654 | I31: 0 | J31: ='[1]Energia '!$I$24 -> 0.344 | K31: =+K22 -> 0.432 | L31: 2.64 | M31: 17765400 | N31: 0 | O31: 34400 | P31: 43200 | Q31: 264000 | R31: 181.07 | S31: 0.01457999669 | T31: -0.184251784 | U31: 1810700 | V31: -408980
C32: Mezclador Ring-pan LIEBHERR con revolvedora eléctrica Hybrid sobre chasis eléctrico | D32: Mezclador Ring-pan LIEBHERR | E32: Electricidad CFE | F32: =+F19 -> Electricidad chasis eléctrico | G32: =+G19 -> Electricidad CFE | H32: ='Cemento+Energia'!H26 -> 177.654 | I32: 0 | J32: ='[1]Energia '!$I$24 -> 0.344 | K32: =+K23 -> 2.701 | L32: 12.967 | M32: 17765400 | N32: 0 | O32: 34400 | P32: 270100 | Q32: 1296700 | R32: 193.666 | S32: 0.06695548005 | T32: -0.1275048656 | U32: 1936660 | V32: -283020
R33: Promedio | S33: =+SUM(S12:S32)/21 -> 0.02900108949
D34: 1. Si se toma en cuenta el sistema "clasico" de mezclar con la revolvedora, hay solo dos categorias de factor cemento aplaste casi todo el impacto del cemento.
D35: porque el consumo de cemento es tan alto que aplasta las emisiones directas o indirectas (huella) del sistema de transporte.
F36: Intensidad huella | H36: Explicación :
D37: Mezclado en Revolvedora + Chasis eléctrico | F37: 230 | H37: Eficiencia mecánica baja y factor electricidad CFE muy alto.
D38: Mezclado en Revolvedora +Otros chasis | F38: 220 | H38: La revolvedora eléctrica no compensa el chasis diesel
D39: 2. El transporte solo representa menos 2 % de las emisiones, salvo para el Chasis eléctrico.
D40: 3. Para la Revolvedora Tilt y el Mezclado central hemos aplicado los siguientes transportes :
D41: - El transporte más "Clásico"; Revoledora sobre Chasis diesel
D42: - El más "Clásico"; Revoledora que mezcla sobre chasis diesel
D43: - El peor ; Revolvedora eléctrica Hybrid sobre Chasis.
D44: 3. Para la Revolvedora Tilt y el Mezclado central, los resultados son, en comparación el sistema Relvodora que mezcla sobre Chasis diesel
D45: - El Tilt no mejora casi nada con menos de 0.1%.
D46: - El Twin-shaft casi mejora de 15 %, lo que mucho.
D47: - El Ring-pan LIEBHERR casi mejora de 20 %, lo que sobresaliente.

Sheet Transporte (hidden)
D4: ESTUDIO ECOLOGIA : CICLO DE VIDA DE LA PLANTA DE CONCRETO.
D5: 2. CO2 DURANTE EL TRANSPORTE.
D6: 2.2. TRANSPORTE ACTIVO Y PARADAS : evitar el Chasis eléctrica y cualquier otra combinación no hace gran diferencia
F7: sobre la emisión transporte.
D8: Colima, EQUIPO FRANCES SA DE CV, crearo Abr. 9 2022. Actualizado Abr. 11 2022.
D10: Parámetros fijos : un solo concreto con 350 kg cemento/m3 (30 MPa), duración mezclado.
A12: SISTEMA AMASADO | B12: SOPORTE SISTEMA | C12: ENERGIA | D12: SISTEMA TRANSPORTE | E12: SOPORTE DEL | F12: ENERGIA UTILIZADA | H12: TRANSPORTE ACTIVO | J12: PARADAS | L12: FACTOR
B13: DEL MEZCLADO | C13: UTILIZADA | D13: REVOLVEDORA | E13: SISTEMA | F13: TRANSPORTE ACTIVO | G13: PARADAS | H13: DIRECTA | I13: HUELLA | J13: DIRECTA | K13: HUELLA | L13: TRANSPORTE
E14: DEL MEZCLADO | H14: Diesel, gas | I14: Electricidad | J14: Diesel, gas | K14: Electricidad | L14: TOTAL
A15: Revolvedora normal | B15: Chasis diesel | C15: Diesel chasis | D15: Revolvedora normal | E15: Chasis diesel | F15: Diesel | G15: Diesel | H15: 3.3 | J15: 0.66 | L15: =+SUM(H15:K15) -> 3.96
A16: Revolvedora normal | B16: Chasis gas | C16: Gas chasis | D16: Revolvedora normal | E16: Chasis gas | F16: Gas | G16: Gas | H16: =+H15*0.8 -> 2.64 | J16: =+J15*0.8 -> 0.528 | L16: =+SUM(H16:K16) -> 3.168
A17: Revolvedora normal | B17: Chasis eléctrico | C17: Electricidad chasis eléctrico | D17: Revolvedora normal | E17: Chasis eléctrico | F17: Electricidad chasis eléctrico | G17: Electricidad chasis eléc. | I17: 12.967 | K17: 2.701 | L17: 15.668
A18: Revolvedora eléctrica Hybrid | B18: Chasis diesel | C18: Electricidad chasis diesel | D18: Revolvedora eléctrica Hybrid | E18: Chasis diesel | F18: Diesel | G18: Diesel | H18: =+H15 -> 3.3 | J18: =+J15 -> 0.66 | L18: 3.96
A19: Revolvedora eléctrica Plug-in | B19: Chasis diesel | C19: Electricidad CFE | D19: Revolvedora eléctrica Plug-in | E19: Chasis diesel | F19: Diesel | G19: Electricidad CFE | H19: =+H15 -> 3.3 | K19: 0.432 | L19: 3.732
A20: Revolvedora eléctrica Hydrid | B20: Chasis gas | C20: Electricidad chasis gas | D20: Revolvedora eléctrica Hydrid | E20: Chasis gas | F20: Gas | G20: Gas | H20: =+H16 -> 2.64 | J20: =+J16 -> 0.528 | L20: 3.168
A21: Revolvedora eléctrica Plug-in | B21: Chasis gas | C21: Electricidad CFE | D21: Revolvedora eléctrica Plug-in | E21: Chasis gas | F21: Gas | G21: Electricidad CFE | H21: =+H16 -> 2.64 | I21: =+I19 ->  | K21: =+K19 -> 0.432 | L21: 3.072
A22: Revolvedora eléctrica Hybrid | B22: Chasis eléctrico | C22: Electricidad chasis eléctrico | D22: Revolvedora eléctrica Hybrid | E22: Chasis eléctrico | F22: Electricidad chasis eléctrico | G22: Electricidad chasis eléc, | I22: =+I17 -> 12.967 | K22: 2.701 | L22: 15.668
A23: Revolvedora eléctrica Plug-in | B23: Chasis eléctrico | C23: Electricidad CFE | D23: Revolvedora eléctrica Plug-in | E23: Chasis eléctrico | F23: Electricidad chasis eléctrico | G23: Electricidad CFE | I23: 12.967 | K23: =+K19 -> 0.432 | L23: 13.399
A24: Revolvedora Tilt | B24: Planta dosificadora | C24: Electricidad CFE | D24: Revolvedora normal | E24: Planta dosificadora | F24: Puede aplicar toda la lista de arriba
A25: Mezclador Twin-shaft Otros | B25: Planta mezclador central | C25: Electricidad CFE | D25: Mezclador Twin-shaft Otros | E25: Planta mezclador central | F25: Puede aplicar toda la lista de arriba
A26: Mezclador Twin-shaft LIEBHERR | B26: Planta mezclador central | C26: Electricidad CFE | D26: Mezclador Twin-shaft LIEBHERR | E26: Planta mezclador central | F26: Puede aplicar toda la lista de arriba
A27: Mezclador Ring-pan LIEBHERR | B27: Planta mezclador central | C27: Electricidad CFE | D27: Mezclador Ring-pan LIEBHERR | E27: Planta mezclador central | F27: Puede aplicar toda la lista de arriba
E29: Hay tres categorias de equipo de amasado en cuanto a emsión de CO2 durante el mezclado :
G30: Intensidad huella | H30: Explicación :
E31: Todas las opciones con el hasis eléctrico | G31: MUY ALTA | H31: Eficiencia mecánica baja y factor electricidad CFE muy alto.
E32: Revolvedora normal y eléctrica chasis diesel | G32: MEDIANO | H32: La revolvedora eléctrica no compensa el chasis diesel
E33: Revolvedora eléctrico sobre chasis gas; mejor opción | G33: BAJO | H33: La revolvedora eléctrica potencia el chasis gas
E34: Revolvedora Tilt o Mezclado Central; pueden aplicar todos los sistemas de transporte mencionados.

Sheet Cemento+Energia (hidden)
E2: ESTUDIO ECOLOGIA : CICLO DE VIDA DE LA PLANTA DE CONCRETO.
E3: 1. CO2 DURANTE EL MEZCLADO.
E4: 1.4. CEMENTO + ENERGIA UTILIZADA : 1.4.2. Huella CO2 según el sistema de amasado.
E5: La huella del consumo el cemento explica 99% de la huella de la fase amasado,
E6: y solo el mezclador la puede bajar.
E7: Creado Colima, EQUIPO FRANCES SA DE CV, Abr. 9 2022. Actualizado Abr. 11 2022.
E9: Parámetros fijos : un solo concreto con 350 kg cemento/m3 (30 MPa), duración mezclado.
D11: Duración | E11: SISTEMA AMASADO | F11: SOPORTE SISTEMA | G11: ENERGIA | H11: FACTOR | I11: FACTOR | J11: FACTOR | K11: % FACTOR | L11: Ejemplo m3 | M11: Cambio vs
D12: mezclado | F12: DEL MEZCLADO | G12: UTILIZADA | H12: CEMENTO | I12: ENERGIA | J12: AMASADO | K12: SISTEMA VS | L12: concreto = | M12: revolvedora
H13: kg CO2/m3 | I13: kg CO2/m3 | J13: kg CO2/m3 | K13: CEMENTO | L13: 10000 | M13: norma
D14: 7 min | E14: Revolvedora normal | F14: Chasis diesel | G14: Diesel chasis | H14: ='Consumo Cemento'!H12 -> 217.7 | I14: ='Energia '!J12 -> 0.308 | J14: =+H14+I14 -> 218.008 | K14: =+I14/J14 -> 0.001412792191 | L14: =+J14*$L$13 -> 2180080 | M14: =+(I14-$I$14)/$I$14 -> 0
D15: 7 min | E15: Revolvedora normal | F15: Chasis gas | G15: Gas chasis | H15: ='Consumo Cemento'!H13 -> 217.7 | I15: ='Energia '!J13 -> 0.2464 | J15: =+H15+I15 -> 217.9464 | K15: =+I15/J15 -> 0.0011305532 | L15: =+J15*$L$13 -> 2179464 | M15: =+(L15-$L$14)/$L$14 -> -0.0002825584382
D16: 7 min | E16: Revolvedora normal | F16: Chasis eléctrico | G16: Electricidad chasis eléc. | H16: ='Consumo Cemento'!H14 -> 217.7 | I16: ='Energia '!$J$14 -> 0.504 | J16: 218.204 | K16: 0.002309765174 | L16: 2182040 | M16: =+(L16-$L$14)/$L$14 -> 0.0008990495762
D17: 7 min | E17: Revolvedora eléctrica Hybrid | F17: Chasis diesel | G17: Electricidad chasis diesel | H17: ='Consumo Cemento'!H15 -> 217.7 | I17: ='Energia '!J15 -> 0.308 | J17: 218.008 | K17: 0.001412792191 | L17: 2180080 | M17: 0
D18: 7 min | E18: Revolvedora eléctrica Plug-in | F18: Chasis diesel | G18: Electricidad CFE | H18: ='Consumo Cemento'!H16 -> 217.7 | I18: ='Energia '!J16 -> 0.202 | J18: 217.902 | K18: 0.0009270222394 | L18: 2179020 | M18: -0.0004862206891
D19: 7 min | E19: Revolvedora eléctrica Hydrid | F19: Chasis gas | G19: Electricidad chasis gas | H19: ='Consumo Cemento'!H17 -> 217.7 | I19: ='Energia '!J17 -> 0.2464 | J19: 217.9464 | K19: 0.0011305532 | L19: 2179464 | M19: -0.0002825584382
D20: 7 min | E20: Revolvedora eléctrica Plug-in | F20: Chasis gas | G20: Electricidad CFE | H20: ='Consumo Cemento'!H18 -> 217.7 | I20: ='Energia '!J18 -> 0.202 | J20: 217.902 | K20: 0.0009270222394 | L20: 2179020 | M20: -0.0004862206891
D21: 7 min | E21: Revolvedora eléctrica Hybrid | F21: Chasis eléctrico | G21: Electricidad chasis eléc. | H21: ='Consumo Cemento'!H19 -> 217.7 | I21: ='Energia '!J19 -> 0.504 | J21: 218.204 | K21: 0.002309765174 | L21: 2182040 | M21: 0.0008990495762
D22: 7 min | E22: Revolvedora eléctrica Plug-in | F22: Chasis eléctrico | G22: Electricidad CFE | H22: ='Consumo Cemento'!H20 -> 217.7 | I22: ='Energia '!J20 -> 0.202 | J22: 217.902 | K22: 0.0009270222394 | L22: 2179020 | M22: -0.0004862206891
D23: 5 min | E23: Revolvedora Tilt | F23: Planta dosificadora | G23: Electricidad CFE | H23: ='Consumo Cemento'!H21 -> 213.346 | I23: ='Energia '!J21 -> 0.686 | J23: 214.032 | K23: 0.003205128205 | L23: 2140320 | M23: -0.01823786283
D24: 1 min | E24: Mezclador Twin-shaft Otros | F24: Planta mezclador central | G24: Electricidad CFE | H24: ='Consumo Cemento'!H22 -> 187.004 | I24: ='Energia '!J22 -> 0.259 | J24: 187.263 | K24: 0.001383081548 | L24: 1872630 | M24: -0.1410269348
D25: 0.95 min | E25: Mezclador Twin-shaft LIEBHERR | F25: Planta mezclador central | G25: Electricidad CFE | H25: ='Consumo Cemento'!H23 -> 187.004 | I25: ='Energia '!J23 -> 0.246 | J25: 187.25 | K25: 0.001313751669 | L25: 1872500 | M25: -0.1410865656
D26: 0.95 min | E26: Mezclador Ring-pan LIEBHERR | F26: Planta mezclador central | G26: Electricidad CFE | H26: ='Consumo Cemento'!H24 -> 177.654 | I26: ='Energia '!J24 -> 0.344 | J26: 177.998 | K26: 0.001932605984 | L26: 1779980 | M26: -0.1835253752
I27: Promedio | J27: =+SUM(J14:J26)/13 -> 209.8896769 | K27: =+SUM(K14:K26)/13 -> 0.001563219635
E28: 1. El factor de consumo de cemento aplasta literalmente el factor energia de amasado; que vale solo 0.16 % del factor total ¡ :
E29: En todas las situaciones, el factor energia apenas explica 0,20 % del factor total (con excepción de la Revolvedora Tilt con 0.32%).
E30: 2. No hay impacto significativo usar un equipo de gas o eléctrico para mezclar.
E31: Se explica porque cual sea el sistema y energia basado en amasar con revolvedora, no mejora nada en la hidratación del cemento.
E32: La Revolvedora Tilt a pesar de mejorar algo en la hidratación lo cancela por parte por un consumo alto de electricidad.
E33: 3. Solo el Mezclado Central con un mezclador que aplica una fuerza eficiente y dinámica permite ahorrar el cemento.
E35: 4. Hay cuatro categorias de equipo de amasado en cuanto a emsión de CO2 durante el mezclado :
G36: Intensidad huella : | H36: Explicación :
E37: Revolvedora normal y eléctrica Hybrid chasis eléctrico | G37: MUY ALTA | H37: Elimina toda idea de querer seguir mezclando con revolvedora
H38: si se adquiere un equipo 100% eléctrico.
E39: Revolvedora normal y eléctrica chasis diesel o gas | G39: MUY ALTA muy poco menos | H39: También, elimina la idea seguir mezclando con revolvedora eléctrica
H40: si se conserva un chasis "clásico".
E41: Mezclador Twin-shaft | G41: ALTA Bajada significativa | H41: La mejora en la activación del cemento es muy interesante y
H42: aplica casi a 100% sobre la huella CO2 total.
E43: Mezclador Ring-pan LIEBHERR | G43: MEDIANA Bajada fuerte | H43: El Ring-pan LIEBHERR, mezclador más eficiente actual.
E44: = Herramienta ideal para mezclar. | G44: Ver Estudio Mezclado Central; Tesis J. Moreno, Ecole Central Nantes,
G45: France, que compara el Twin-shaft LIEBHERR y el Ring-pan LIEBHERR.
G46: Empresa BTL Angers, France

Sheet Energia (hidden)
E2: ESTUDIO ECOLOGIA : CICLO DE VIDA DE LA PLANTA DE CONCRETO.
E3: 1. CO2 DURANTE EL MEZCLADO.
E4: 1.3. ENERGIA UTILIZADA : 1.3.1. Huella CO2 según el sistema de amasado.
E5: La emisión directa de la revolvedora y la huella del mezclador son del mismo orden, solo Tilt tiene huella en exceso.
E6: Creado Colima, EQUIPO FRANCES SA DE CV, Abr. 9 2022. Actualizado Abr. 17 2022.
E7: Parámetros fijos : un solo concreto con 350 kg cemento/m3 (30 MPa), duración mezclado.
D9: Duración | E9: SISTEMA AMASADO | F9: SOPORTE SISTEMA | G9: ENERGIA | H9: TIPO DE EMISION | J9: FACTOR | K9: Ejemplo m3 | L9: Ejemplo m3 | M9: Cambio vs
D10: mezclado | F10: DEL MEZCLADO | G10: UTILIZADA | H10: DIRECT | I10: HUELLA | J10: EMISION | K10: concreto = | L10: concreto = | M10: revolvedora
H11: Diesel o gas | I11: Electricidad | J11: Kg CO2/m3 | K11: 10000 | L11: 50000 | M11: norma
D12: 7 min | E12: Revolvedora normal | F12: Chasis diesel | G12: Diesel chasis | H12: 0.308 | J12: =++H12+I12 -> 0.308 | K12: =+J12*$K$11 -> 3080 | L12: =+J12*$L$11 -> 15400 | M12: =+(J12-$J$12)/$J$12 -> 0
D13: 7 min | E13: Revolvedora normal | F13: Chasis gas | G13: Gas chasis | H13: =+H12*0.8 -> 0.2464 | J13: =++H13+I13 -> 0.2464 | K13: =+J13*$K$11 -> 2464 | L13: =+J13*$L$11 -> 12320 | M13: -0.2
D14: 7 min | E14: Revolvedora normal | F14: Chasis eléctrico | G14: Electricidad chasis eléctrico | I14: 0.504 | J14: 0.504 | K14: 5040 | L14: 25200 | M14: 0.6363636364 | O14: 0.504
D15: 7 min | E15: Revolvedora eléctrica Hybrid | F15: Chasis diesel | G15: Electricidad chasis diesel | H15: 0.308 | J15: 0.308 | K15: 3080 | L15: 15400 | M15: 0
D16: 7 min | E16: Revolvedora eléctrica Plug-in | F16: Chasis diesel | G16: Electricidad CFE | I16: 0.202 | J16: 0.202 | K16: 2020 | L16: 10100 | M16: -0.3441558442
D17: 7 min | E17: Revolvedora eléctrica Hydrid | F17: Chasis gas | G17: Electricidad chasis gas | H17: =+H13 -> 0.2464 | J17: 0.2464 | K17: 2464 | L17: 12320 | M17: -0.2
D18: 7 min | E18: Revolvedora eléctrica Plug-in | F18: Chasis gas | G18: Electricidad CFE | I18: =+I16 -> 0.202 | J18: 0.202 | K18: 2020 | L18: 10100 | M18: -0.3441558442
D19: 7 min | E19: Revolvedora eléctrica Hybrid | F19: Chasis eléctrico | G19: Electricidad chasis eléctrico | I19: =+I14 -> 0.504 | J19: 0.504 | K19: 5040 | L19: 25200 | M19: 0.6363636364
D20: 7 min | E20: Revolvedora eléctrica Plug-in | F20: Chasis eléctrico | G20: Electricidad CFE | I20: =+I16 -> 0.202 | J20: 0.202 | K20: 2020 | L20: 10100 | M20: -0.3441558442
D21: 5 min | E21: Revolvedora Tilt | F21: Planta dosificadora | G21: Electricidad CFE | I21: 0.686 | J21: =+H21+I21 -> 0.686 | K21: 6860 | L21: 34300 | M21: 1.227272727
D22: 1 min | E22: Mezclador Twin-shaft Otros | F22: Planta mezclador central | G22: Electricidad CFE | I22: 0.259 | J22: 0.259 | K22: 2590 | L22: 12950 | M22: =+(J22-$J$12)/$J$12 -> -0.1590909091
D23: 0.95 min | E23: Mezclador Twin-shaft LIEBHERR | F23: Planta mezclador central | G23: Electricidad CFE | I23: 0.246 | J23: 0.246 | K23: 2460 | L23: 12300 | M23: =+(J23-$J$12)/$J$12 -> -0.2012987013
D24: 0.95 min | E24: Mezclador Ring-pan LIEBHERR | F24: Planta mezclador central | G24: Electricidad CFE | I24: 0.344 | J24: 0.344 | K24: 3440 | L24: 17200 | M24: 0.1168831169
E26: En cuanto a energia, hay tres categorias de equipo de amasado :
F27: Intensidad huella | G27: Explicación :
E28: Revolvedora Tilt Electricidad | F28: ALTA | G28: Eficiencia enérgética muy baja de 8 %.
E29: Chasis eléctrico | F29: MEDIANA | G29: Eficiencia mecánica baja y factor electricidad CFE muy alto.
E30: Diesel, gas y Mezclador | F30: BAJA | G30: El mezclador "emite" más porque también aplica más energia.
F31: Ver Estudio Mezclado Central Ficha 3.13.1. Sistema amasado : energia aplicada.
E33: Resumen por tipo de energia para mezclar :
E34: ´- Diesel y gas : coeficiente bajo porque a pesar del factor alto de 2.64 kgCO2/litro diesel, el camión consume poco por tiempo, unos 8 litros/hora.
E35: ´- El mezclador consume más energia en Joule/m3, lo que explica su eficiencia mayor en hidratar el cemento y hacer concreto más homogeneo.
E36: Pero el Twin-shaft aún emite menos que la Revolvedora diesel.
E37: ´- La huella de la electricidad del chasis eléctrico es muy superior a la huella del diesel quemado por el chasis tradicional.
E38: ´- La revolvedora Tilt padece de una potencia excesiva, de una eficiencia muy baja y de la potencia alta de motor eléctrica que tiene que mezclar
E39: y descargar su olla.
E40: Porque la revolvedora eléctrica con electricidad CFE es eficiente y la revolvedora con electricidad del chasis eléctrico no ?
E41: - El motor eléctrico de la revolvedora eléctrico es de sol 28 KW y bastante eficiente con unos 37 %.
E42: Entonces, si esta utilizado en Plug-in con electricidad CFE, y a pesar de que esta electricad es bastante "sucia", emitirá menos que el motor diesel.
E43: ´- El motor eléctrico del chasis eléctrico que se piensa instalar para montar una olla de 8 m3 es de entre 350 kW y 500 kW.
E44: Hemos utilizado la cifra baja de 350 kW pero a pesar de esta minimización de la potencia ( y por lo tanto del consumo en kWh), el motor sigue
E45: siendo menos limpio (en emisión de CO2) que el motor diesel porque en Mexico, la huella de la electricidad CFE es muy alta (0.494 kg CO2/kWh).
E46: ´También se cree que seria igual que en Europa pero allá la huella de la electricidad varia entre 0.75 (Francia) y 0,25 (Alemania) solamente.
E47: En Europa se favorece el chasis eléctrico porque todos los concretos utilizan un mezclador central y el problema del diesel (y gas) es que
E48: emiten otras párticulos directamente dañinas (el CO2 solo tiene un efecto muy indirecto sobre el hombre) para la salud del hombre; gas tóxicos (Nox),
E49: particulas finas etc., las cuales SI hay que tomar en cuenta en una analisis LCA completa.
E52: SISTEMA AMASADO | F52: SOPORTE SISTEMA | G52: ENERGIA | H52: TIPO DE EMISION
F53: DEL MEZCLADO | G53: UTILIZADA | H53: DIRECTA | I53: HUELLA
H54: Diesel o gas | I54: Electricidad
E55: Revolvedora normal | F55: Chasis diesel | G55: Diesel chasis | H55: Directa
E56: Revolvedora normal | F56: Chasis gas | G56: Gas chasis | H56: Directa
E57: Revolvedora normal | F57: Chasis eléctrico | G57: Electricidad chasis eléctrico | I57: Huella
E58: Revolvedora eléctrica Hybrid | F58: Chasis diesel | G58: Electricidad chasis diesel | H58: Directa
E59: Revolvedora eléctrica Plug-in | F59: Chasis diesel | G59: Electricidad CFE | I59: Huella
E60: Revolvedora eléctrica Hydrid | F60: Chasis gas | G60: Electricidad chasis gas | H60: Directa
E61: Revolvedora eléctrica Plug-in | F61: Chasis gas | G61: Electricidad CFE | I61: Huella
E62: Revolvedora eléctrica Hybrid | F62: Chasis eléctrico | G62: Electricidad chasis eléctrico | I62: Huella
E63: Revolvedora eléctrica Plug-in | F63: Chasis eléctrico | G63: Electricidad CFE | I63: Huella
E64: Revolvedora Tilt | F64: Planta dosificadora | G64: Electricidad CFE | I64: Huella
E65: Mezclador Twin-shaft Otros | F65: Planta mezclador central | G65: Electricidad CFE | I65: Huella
E66: Mezclador Twin-shaft LIEBHERR | F66: Planta mezclador central | G66: Electricidad CFE | I66: Huella
E67: Mezclador Ring-pan LIEBHERR | F67: Planta mezclador central | G67: Electricidad CFE | I67: Huella

Sheet Consumo Cemento (hidden)
E2: ESTUDIO ECOLOGIA : CICLO DE VIDA DE LA PLANTA DE CONCRETO.
E3: 1. CO2 DURANTE EL MEZCLADO.
E4: 1.2. CEMENTO : 1.2.2. Huella CO2 según el sistema de amasado.
E5: La huella del cemento es muy alta y solo se puede bajar utilizando un Mezclador Central.
E6: Creado Colima, EQUIPO FRANCES SA DE CV, Abr. 9 2022. Actualizado Abr. 11 2022.
E8: Parámetros fijos : un solo concreto con 300 kg cemento/m3 (30 MPa), duración mezclado.
D9: Duración | E9: SISTEMA AMASADO | F9: SOPORTE SISTEMA | G9: ENERGIA | H9: FACTOR | I9: Ejemplo m3 | J9: Ejemplo m3 | K9: Mejora del
D10: mezclado | F10: DEL MEZCLADO | G10: UTILIZADA | H10: EMISION | I10: concreto = | J10: concreto = | K10: mezclado
H11: Kg CO2/m3 | I11: 10000 | J11: 50000 | K11: central
D12: 7 min | E12: Revolvedora normal | F12: Chasis diesel | G12: Diesel chasis | H12: 217.7 | I12: =+H12*$I$11 -> 2177000 | J12: =+H12*$J$11 -> 10885000
D13: 7 min | E13: Revolvedora normal | F13: Chasis gas | G13: Gas chasis | H13: =+H12 -> 217.7 | I13: =+H13*$I$11 -> 2177000 | J13: =+H13*$J$11 -> 10885000
D14: 7 min | E14: Revolvedora normal | F14: Chasis eléctrico | G14: Electricidad chasis eléctrico | H14: =+H12 -> 217.7 | I14: 2177000 | J14: 10885000
D15: 7 min | E15: Revolvedora eléctrica Hybrid | F15: Chasis diesel | G15: Electricidad chasis diesel | H15: 217.7 | I15: 2177000 | J15: 10885000
D16: 7 min | E16: Revolvedora eléctrica Plug-in | F16: Chasis diesel | G16: Electricidad CFE | H16: =+H12 -> 217.7 | I16: 2177000 | J16: 10885000
D17: 7 min | E17: Revolvedora eléctrica Hydrid | F17: Chasis gas | G17: Electricidad chasis gas | H17: =+H12 -> 217.7 | I17: 2177000 | J17: 10885000
D18: 7 min | E18: Revolvedora eléctrica Plug-in | F18: Chasis gas | G18: Electricidad CFE | H18: =+H12 -> 217.7 | I18: 2177000 | J18: 10885000
D19: 7 min | E19: Revolvedora eléctrica Hybrid | F19: Chasis eléctrico | G19: Electricidad chasis eléctrico | H19: =+H12 -> 217.7 | I19: 2177000 | J19: 10885000
D20: 7 min | E20: Revolvedora eléctrica Plug-in | F20: Chasis eléctrico | G20: Electricidad CFE | H20: =+H12 -> 217.7 | I20: 2177000 | J20: 10885000
D21: 5 min | E21: Revolvedora Tilt | F21: Planta dosificadora | G21: Electricidad CFE | H21: 213.346 | I21: 2133460 | J21: 10667300
D22: 1 min | E22: Mezclador Twin-shaft Otros | F22: Planta mezclador central | G22: Electricidad CFE | H22: 187.004 | I22: 1870040 | J22: 9350200 | K22: =+($H$12-H22)/$H$12 -> 0.141001378
D23: 0.95 min | E23: Mezclador Twin-shaft LIEBHERR | F23: Planta mezclador central | G23: Electricidad CFE | H23: 187.004 | I23: 1870040 | J23: 9350200 | K23: =+($H$12-H23)/$H$12 -> 0.141001378
D24: 0.95 min | E24: Mezclador Ring-pan LIEBHERR | F24: Planta mezclador central | G24: Electricidad CFE | H24: 177.654 | I24: 1776540 | J24: 8882700 | K24: 0.1839503904
E26: Hay cuatro categorias de equipo de amasado :
G27: Intensidad de la huella | H27: Explicación : Ver Estudio Mezclado Central.
E28: Revolvedora normal o eléctrica | G28: MUY ALTA | H28: Desperdicio de 25-35% de cemento no hidratado.
E29: Revolvedora Tilt | G29: MUY ALTA | H29: Mejora de solo 22 a 3 % la hidratación.
E30: Mezclador Twin-shaft Otros o LIEBHERR | G30: MAS BAJA PERO ALTA | H30: Mejora de 10 a 15% la activación del cemento.
E31: Mezclador Ring-pan LIEBHERR | G31: MAS BAJA SIGNIFICATIVO | H31: La activicación del cemento se acerca a 90-100%.
E33: Que significa factor de emisión del cemento; en este caso huella* para la planta de concreto ?
E34: * No es una emisión directa hecha en la planta de concreto.
E35: Se ha utilizada la cifra mediana del cemento producido y consumido en México de 622 kg CO2 por tonelada.
E36: de cemento producido; es una hipotesis relativamente baja.
E37: Esta cifra puede depender de la marca del cemento.
E39: Porque el cemento tiene una huella tan alta de CO2 ?
E40: Ver Libro Estudio Mezclado Central Parte 1.1. Cemento.
E41: Primero se utiliza CaCO3 para exraer el Calcio asi liberando CO2 en la reacción química.
E42: Segundo se tiene que calentar la mezcla con arcilla a más de 1,400 °C, en el caso de
E43: México se utiliza en gran mayorio la energia carbonada; petroleo, gas y carbon.
